[Event "Chess Stars Match"]
[Site "Teatro Capri, Paterna, Spain"]
[Date "2019.12.15"]
[Round "9.1"]
[White "Howell, David W L"]
[Black "Llobell Cortell, Enrique"]
[Result "1-0"]
[TimeControl "7m+3s"]
[WhiteTitle "GM"]
[BlackTitle "IM"]
[WhiteFideId "410608"]
[BlackFideId "2216116"]
[WhiteElo "2676"]
[BlackElo "2401"]

1. g3 {[%clk 00:03:03]} {[%emt 00:00:02]} d5 {[%clk 00:04:04]} {[%emt
00:00:03]} 2. Nf3 {[%clk 00:03:05]} {[%emt 00:00:02]} Nf6 {[%clk 00:04:04]}
{[%emt 00:00:02]} 3. Bg2 {[%clk 00:03:06]} {[%emt 00:00:01]} c6 {[%clk
00:04:06]} {[%emt 00:00:02]} 4. c4 {[%clk 00:03:07]} {[%emt 00:00:02]} Bg4
{[%clk 00:04:01]} {[%emt 00:00:07]} 5. Ne5 {[%clk 00:03:08]} {[%emt 00:00:02]}
Be6 {[%clk 00:03:58]} {[%emt 00:00:06]} 6. cxd5 {[%clk 00:03:09]} {[%emt
00:00:04]} Bxd5 {[%clk 00:03:54]} {[%emt 00:00:06]} 7. Nf3 {[%clk 00:03:10]}
{[%emt 00:00:02]} Nbd7 {[%clk 00:03:54]} {[%emt 00:00:03]} 8. Nc3 {[%clk
00:03:04]} {[%emt 00:00:09]} Bxf3 {[%clk 00:03:55]} {[%emt 00:00:02]} 9. Bxf3
{[%clk 00:03:05]} {[%emt 00:00:02]} e5 {[%clk 00:03:57]} {[%emt 00:00:01]} 10.
d3 {[%clk 00:02:59]} {[%emt 00:00:08]} Bc5 {[%clk 00:03:25]} {[%emt 00:00:35]}
11. a3 {[%clk 00:02:49]} {[%emt 00:00:13]} O-O {[%clk 00:03:12]} {[%emt
00:00:13]} 12. O-O {[%clk 00:02:48]} {[%emt 00:00:07]} Re8 {[%clk 00:03:08]}
{[%emt 00:00:07]} 13. Qc2 {[%clk 00:02:32]} {[%emt 00:00:19]} a6 {[%emt
00:00:41]} 14. b4 {[%clk 00:02:18]} {[%emt 00:00:17]} Ba7 {[%clk 00:02:33]}
{[%emt 00:00:01]} 15. Bb2 {[%clk 00:02:20]} Qe7 {[%clk 00:02:35]} {[%emt
00:00:01]} 16. Rad1 {[%clk 00:01:59]} {[%emt 00:00:24]} Rad8 {[%clk 00:02:36]}
{[%emt 00:00:02]} 17. e3 {[%clk 00:01:53]} {[%emt 00:00:09]} Nb6 {[%clk
00:02:37]} {[%emt 00:00:03]} 18. Rfe1 {[%clk 00:01:44]} {[%emt 00:00:11]} Nbd5
{[%clk 00:02:35]} {[%emt 00:00:05]} 19. Na4 {[%clk 00:01:41]} {[%emt 00:00:06]}
h6 {[%clk 00:01:52]} {[%emt 00:00:46]} 20. Ba1 {[%clk 00:01:32]} {[%emt
00:00:12]} a5 {[%clk 00:01:47]} {[%emt 00:00:08]} 21. bxa5 {[%clk 00:00:56]}
{[%emt 00:00:39]} Qxa3 {[%clk 00:01:49]} {[%emt 00:00:02]} 22. Qc4 {[%clk
00:00:58]} Qb4 {[%clk 00:01:13]} {[%emt 00:00:39]} 23. Qxb4 {[%clk 00:00:23]}
{[%emt 00:00:39]} Nxb4 {[%clk 00:01:15]} {[%emt 00:00:01]} 24. Be2 {[%clk
00:00:25]} Nc2 {[%clk 00:00:13]} {[%emt 00:01:05]} 25. Rf1 {[%clk 00:00:26]}
{[%emt 00:00:01]} Nxa1 {[%clk 00:00:10]} {[%emt 00:00:07]} 26. Rxa1 {[%clk
00:00:28]} {[%emt 00:00:01]} Ra8 {[%clk 00:00:09]} {[%emt 00:00:03]} 27. Rfb1
{[%clk 00:00:21]} {[%emt 00:00:09]} Re7 {[%clk 00:00:12]} {[%emt 00:00:01]} 28.
Nb2 {[%clk 00:00:23]} {[%emt 00:00:01]} Bb8 {[%clk 00:00:12]} {[%emt 00:00:03]}
29. Nc4 {[%clk 00:00:24]} {[%emt 00:00:01]} Ra7 {[%clk 00:00:07]} {[%emt
00:00:08]} 30. Nb6 {[%clk 00:00:15]} {[%emt 00:00:12]} Re8 {[%clk 00:00:07]}
{[%emt 00:00:04]} 31. Rb3 {[%clk 00:00:13]} {[%emt 00:00:05]} Bc7 {[%clk
00:00:09]} {[%emt 00:00:01]} 32. Nc4 {[%clk 00:00:14]} {[%emt 00:00:01]} Rea8
{[%clk 00:00:11]} 33. Rc1 {[%clk 00:00:10]} {[%emt 00:00:08]} Nd7 {[%clk
00:00:11]} {[%emt 00:00:04]} 34. Rb2 {[%clk 00:00:06]} {[%emt 00:00:07]} Nc5
{[%clk 00:00:08]} {[%emt 00:00:05]} 35. Nb6 {[%clk 00:00:05]} {[%emt 00:00:04]}
Bxb6 {[%clk 00:00:08]} {[%emt 00:00:03]} 36. axb6 {[%clk 00:00:07]} Ra2 {[%clk
00:00:11]} 37. Rxa2 {[%clk 00:00:07]} {[%emt 00:00:03]} Rxa2 {[%clk 00:00:13]}
38. Rxc5 {[%clk 00:00:09]} Rxe2 {[%clk 00:00:15]} {[%emt 00:00:01]} 39. Rxe5
{[%clk 00:00:11]} {[%emt 00:00:01]} Rb2 {[%clk 00:00:17]} {[%emt 00:00:01]} 40.
Re8+ {[%clk 00:00:12]} {[%emt 00:00:01]} Kh7 {[%clk 00:00:19]} {[%emt
00:00:01]} 41. Re7 {[%clk 00:00:14]} Rxb6 {[%emt 00:00:02]} 42. Rxf7 {[%clk
00:00:16]} Kg6 {[%clk 00:00:22]} {[%emt 00:00:01]} 43. Rc7 {[%clk 00:00:18]}
{[%emt 00:00:01]} Kf6 {[%clk 00:00:23]} {[%emt 00:00:03]} 44. h4 {[%clk
00:00:19]} {[%emt 00:00:01]} Rb2 {[%clk 00:00:14]} {[%emt 00:00:12]} 45. d4
{[%clk 00:00:17]} {[%emt 00:00:05]} g5 {[%clk 00:00:09]} {[%emt 00:00:09]} 46.
hxg5+ {[%clk 00:00:10]} {[%emt 00:00:10]} hxg5 {[%clk 00:00:11]} {[%emt
00:00:01]} 47. g4 {[%clk 00:00:12]} Ke6 {[%clk 00:00:09]} {[%emt 00:00:06]} 48.
Kg2 {[%clk 00:00:11]} {[%emt 00:00:04]} Kf6 {[%clk 00:00:08]} {[%emt 00:00:04]}
49. Kg3 {[%clk 00:00:08]} {[%emt 00:00:07]} Rb3 {[%clk 00:00:06]} {[%emt
00:00:05]} 50. Rc8 {[%clk 00:00:09]} {[%emt 00:00:01]} Ke6 {[%clk 00:00:07]}
{[%emt 00:00:02]} 51. Rf8 {[%clk 00:00:06]} {[%emt 00:00:06]} Rb5 {[%clk
00:00:09]} {[%emt 00:00:02]} 52. Kf3 {[%clk 00:00:07]} {[%emt 00:00:01]} Ra5
{[%clk 00:00:07]} {[%emt 00:00:05]} 53. Ke4 {[%clk 00:00:09]} {[%emt 00:00:01]}
Ra2 {[%clk 00:00:06]} {[%emt 00:00:04]} 54. Rf5 {[%clk 00:00:10]} {[%emt
00:00:02]} b5 {[%clk 00:00:07]} {[%emt 00:00:03]} 55. f3 {[%clk 00:00:07]}
{[%emt 00:00:06]} b4 {[%clk 00:00:08]} {[%emt 00:00:02]} 56. Rxg5 {[%emt
00:00:02]} b3 {[%clk 00:00:11]} 57. Rg8 {[%clk 00:00:10]} Rf2 {[%clk 00:00:10]}
{[%emt 00:00:03]} 58. Rb8 {[%clk 00:00:12]} {[%emt 00:00:02]} b2 {[%clk
00:00:12]} 59. f4 {[%clk 00:00:13]} {[%emt 00:00:02]} Kd6 {[%clk 00:00:09]}
{[%emt 00:00:07]} 60. g5 {[%clk 00:00:14]} {[%emt 00:00:02]} c5 {[%clk
00:00:11]} 61. Rb6+ {[%clk 00:00:15]} {[%emt 00:00:01]} 1-0

[Event "Chess Stars Match"]
[Site "Teatro Capri, Paterna, Spain"]
[Date "2019.12.15"]
[Round "9.2"]
[White "Hamitevici, Vladimir"]
[Black "Macias Pino, Diego"]
[Result "0-1"]
[TimeControl "7m+3s"]
[WhiteTitle "GM"]
[WhiteFideId "13902393"]
[BlackFideId "24529133"]
[WhiteElo "2453"]
[BlackElo "2161"]

1. e4 {[%clk 00:03:05]} {[%emt 00:00:01]} c6 {[%clk 00:06:06]} 2. Nf3 {[%clk
00:02:58]} {[%emt 00:00:10]} d5 {[%clk 00:06:08]} {[%emt 00:00:01]} 3. exd5
{[%clk 00:03:00]} {[%emt 00:00:02]} cxd5 {[%clk 00:06:10]} 4. d4 {[%clk
00:03:00]} {[%emt 00:00:03]} Nc6 {[%clk 00:06:10]} {[%emt 00:00:03]} 5. Ne5
{[%clk 00:03:02]} e6 {[%clk 00:06:00]} {[%emt 00:00:14]} 6. Bb5 {[%clk
00:03:01]} {[%emt 00:00:04]} Nge7 {[%clk 00:05:50]} {[%emt 00:00:13]} 7. c4
{[%clk 00:03:00]} {[%emt 00:00:04]} a6 {[%clk 00:05:44]} {[%emt 00:00:10]} 8.
Nxc6 {[%clk 00:02:33]} {[%emt 00:00:29]} Nxc6 {[%clk 00:05:31]} {[%emt
00:00:16]} 9. Bxc6+ {[%clk 00:02:29]} {[%emt 00:00:07]} bxc6 {[%clk 00:05:33]}
{[%emt 00:00:01]} 10. O-O {[%clk 00:02:30]} {[%emt 00:00:02]} Bd6 {[%clk
00:05:33]} {[%emt 00:00:03]} 11. b3 {[%clk 00:02:00]} {[%emt 00:00:33]} O-O
{[%clk 00:05:32]} {[%emt 00:00:04]} 12. Re1 {[%clk 00:01:30]} {[%emt 00:00:33]}
Bb7 {[%clk 00:05:33]} {[%emt 00:00:02]} 13. c5 {[%clk 00:01:22]} {[%emt
00:00:11]} Bc7 {[%clk 00:05:31]} {[%emt 00:00:05]} 14. Qf3 {[%clk 00:01:15]}
{[%emt 00:00:10]} Qh4 {[%clk 00:05:05]} {[%emt 00:00:29]} 15. Bb2 {[%clk
00:00:25]} {[%emt 00:00:53]} Qxh2+ {[%clk 00:04:59]} {[%emt 00:00:09]} 16. Kf1
{[%clk 00:00:27]} a5 {[%clk 00:05:01]} {[%emt 00:00:02]} 17. Ke2 {[%clk
00:00:29]} Ba6+ {[%clk 00:04:56]} {[%emt 00:00:08]} 18. Kd2 {[%clk 00:00:25]}
{[%emt 00:00:08]} Qh6+ {[%clk 00:04:46]} {[%emt 00:00:13]} 19. Kd1 {[%clk
00:00:19]} {[%emt 00:00:09]} Qg6 {[%clk 00:04:40]} {[%emt 00:00:09]} 20. Re3
{[%clk 00:00:10]} {[%emt 00:00:11]} Bf1 {[%clk 00:04:27]} {[%emt 00:00:16]} 21.
g3 {[%clk 00:00:09]} {[%emt 00:00:04]} Bh3 {[%clk 00:04:28]} {[%emt 00:00:01]}
22. Qh1 {[%clk 00:00:07]} {[%emt 00:00:05]} Bg4+ {[%clk 00:04:25]} {[%emt
00:00:07]} 23. Kd2 {[%clk 00:00:08]} {[%emt 00:00:02]} a4 {[%clk 00:03:23]}
{[%emt 00:01:06]} 24. b4 {[%clk 00:00:09]} {[%emt 00:00:02]} Qf6 {[%clk
00:03:05]} {[%emt 00:00:21]} 25. f4 {[%clk 00:00:10]} {[%emt 00:00:02]} g5
{[%clk 00:02:53]} {[%emt 00:00:16]} 26. fxg5 {[%clk 00:00:07]} {[%emt
00:00:06]} Qf2+ {[%clk 00:02:54]} {[%emt 00:00:01]} 0-1

[Event "Chess Stars Match"]
[Site "Teatro Capri, Paterna, Spain"]
[Date "2019.12.15"]
[Round "9.3"]
[White "Injac, Teodora"]
[Black "Vallejo Pons, Francisco"]
[Result "0-1"]
[TimeControl "7m+3s"]
[WhiteTitle "WIM"]
[BlackTitle "GM"]
[WhiteFideId "932400"]
[BlackFideId "2205530"]
[WhiteElo "2284"]
[BlackElo "2704"]

1. d4 {[%clk 00:04:04]} {[%emt 00:00:01]} d5 {[%clk 00:03:00]} {[%emt
00:00:06]} 2. Nf3 {[%clk 00:04:03]} {[%emt 00:00:03]} e6 {[%clk 00:02:59]}
{[%emt 00:00:04]} 3. c4 {[%clk 00:04:05]} {[%emt 00:00:01]} a6 {[%clk
00:03:01]} {[%emt 00:00:02]} 4. cxd5 {[%clk 00:03:58]} {[%emt 00:00:11]} exd5
{[%clk 00:03:02]} {[%emt 00:00:01]} 5. Nc3 {[%clk 00:04:00]} {[%emt 00:00:02]}
h6 {[%clk 00:03:01]} {[%emt 00:00:04]} 6. Bf4 {[%clk 00:03:55]} {[%emt
00:00:07]} Nf6 {[%clk 00:02:57]} {[%emt 00:00:06]} 7. e3 {[%clk 00:03:51]}
{[%emt 00:00:07]} Bd6 {[%clk 00:02:58]} {[%emt 00:00:02]} 8. Bd3 {[%clk
00:03:21]} {[%emt 00:00:33]} O-O {[%clk 00:02:43]} {[%emt 00:00:18]} 9. O-O
{[%clk 00:03:21]} {[%emt 00:00:03]} Bxf4 {[%clk 00:02:42]} {[%emt 00:00:04]} 10.
exf4 {[%clk 00:03:23]} {[%emt 00:00:01]} Bg4 {[%clk 00:02:41]} {[%emt
00:00:04]} 11. Re1 {[%clk 00:02:35]} {[%emt 00:00:51]} Nc6 {[%clk 00:02:39]}
{[%emt 00:00:06]} 12. Be2 {[%clk 00:02:36]} {[%emt 00:00:03]} Bxf3 {[%clk
00:02:36]} {[%emt 00:00:06]} 13. Bxf3 {[%clk 00:02:38]} {[%emt 00:00:01]} Qd6
{[%clk 00:02:36]} {[%emt 00:00:03]} 14. Qd2 {[%clk 00:02:27]} {[%emt 00:00:13]}
Rad8 {[%clk 00:02:26]} {[%emt 00:00:13]} 15. Rad1 {[%clk 00:01:50]} {[%emt
00:00:40]} Na7 {[%clk 00:02:22]} {[%emt 00:00:08]} 16. Re5 {[%clk 00:01:40]}
{[%emt 00:00:13]} c6 {[%clk 00:02:24]} 17. Rde1 {[%clk 00:01:36]} {[%emt
00:00:06]} Nb5 {[%clk 00:02:07]} {[%emt 00:00:21]} 18. Na4 {[%clk 00:01:23]}
{[%emt 00:00:16]} Nd7 {[%clk 00:01:19]} {[%emt 00:00:51]} 19. Re7 {[%clk
00:01:03]} {[%emt 00:00:23]} Nc7 {[%clk 00:01:07]} {[%emt 00:00:16]} 20. f5
{[%clk 00:00:29]} {[%emt 00:00:36]} Rfe8 {[%clk 00:00:54]} {[%emt 00:00:16]} 21.
Rxe8+ {[%clk 00:00:25]} {[%emt 00:00:07]} Rxe8 {[%clk 00:00:55]} {[%emt
00:00:02]} 22. Rxe8+ {[%clk 00:00:24]} {[%emt 00:00:05]} Nxe8 {[%clk 00:00:57]}
{[%emt 00:00:01]} 23. a3 {[%clk 00:00:14]} {[%emt 00:00:13]} Qe7 {[%clk
00:00:54]} {[%emt 00:00:05]} 24. Nc3 {[%clk 00:00:10]} {[%emt 00:00:07]} Nd6
{[%clk 00:00:54]} {[%emt 00:00:03]} 25. g4 {[%clk 00:00:08]} {[%emt 00:00:05]}
Nc4 {[%clk 00:00:55]} {[%emt 00:00:02]} 26. Qc2 {[%clk 00:00:08]} {[%emt
00:00:02]} Nf6 {[%clk 00:00:40]} {[%emt 00:00:19]} 27. Kg2 {[%clk 00:00:08]}
{[%emt 00:00:03]} Qe1 {[%clk 00:00:38]} {[%emt 00:00:05]} 28. h3 {[%clk
00:00:06]} {[%emt 00:00:06]} Nh7 {[%clk 00:00:28]} {[%emt 00:00:12]} 29. h4
{[%clk 00:00:06]} {[%emt 00:00:03]} Qe7 {[%clk 00:00:27]} {[%emt 00:00:05]} 30.
Kg3 {[%clk 00:00:07]} {[%emt 00:00:02]} Qc7+ {[%clk 00:00:21]} {[%emt
00:00:09]} 31. Kg2 {[%clk 00:00:09]} Qd8 {[%clk 00:00:23]} {[%emt 00:00:01]} 32.
Kg3 {[%clk 00:00:10]} {[%emt 00:00:02]} Qd6+ {[%clk 00:00:24]} {[%emt
00:00:03]} 33. Kg2 {[%clk 00:00:12]} Qf4 {[%clk 00:00:25]} {[%emt 00:00:03]} 34.
Ne2 {[%clk 00:00:12]} {[%emt 00:00:03]} Qb8 {[%clk 00:00:18]} {[%emt 00:00:10]}
35. Qb3 {[%clk 00:00:10]} {[%emt 00:00:04]} Nd6 {[%clk 00:00:16]} {[%emt
00:00:05]} 36. Qd3 {[%clk 00:00:10]} {[%emt 00:00:03]} Qd8 {[%clk 00:00:17]}
{[%emt 00:00:03]} 37. Kg3 {[%clk 00:00:11]} {[%emt 00:00:02]} Qb8 {[%clk
00:00:17]} {[%emt 00:00:02]} 38. Kg2 {[%clk 00:00:13]} {[%emt 00:00:01]} Qd8
{[%clk 00:00:18]} {[%emt 00:00:02]} 39. Kg3 {[%clk 00:00:16]} {[%emt 00:00:01]}
Nf6 {[%clk 00:00:17]} {[%emt 00:00:03]} 40. Nc3 {[%clk 00:00:15]} {[%emt
00:00:03]} Qe7 {[%clk 00:00:16]} {[%emt 00:00:05]} 41. Kg2 {[%clk 00:00:08]}
{[%emt 00:00:10]} Nc4 {[%clk 00:00:12]} {[%emt 00:00:07]} 42. Qc2 {[%clk
00:00:10]} Ne8 {[%clk 00:00:12]} {[%emt 00:00:04]} 43. Ne2 {[%clk 00:00:11]}
{[%emt 00:00:02]} Qxh4 {[%clk 00:00:11]} {[%emt 00:00:04]} 44. Qc1 {[%clk
00:00:09]} {[%emt 00:00:05]} Qg5 {[%clk 00:00:11]} {[%emt 00:00:02]} 45. Qb1
{[%clk 00:00:09]} {[%emt 00:00:03]} h5 {[%clk 00:00:11]} {[%emt 00:00:03]} 46.
b3 {[%clk 00:00:08]} {[%emt 00:00:04]} Nd2 {[%clk 00:00:08]} {[%emt 00:00:06]}
47. Qd3 {[%clk 00:00:09]} {[%emt 00:00:02]} hxg4 {[%emt 00:00:10]} 0-1

[Event "Chess Stars Match"]
[Site "Teatro Capri, Paterna, Spain"]
[Date "2019.12.15"]
[Round "9.4"]
[White "Randazzo, Adrian"]
[Black "Arizmendi Martinez, Julen Luis"]
[Result "0-1"]
[TimeControl "7m+3s"]
[WhiteTitle "FM"]
[BlackTitle "GM"]
[WhiteFideId "114251"]
[BlackFideId "2205092"]
[WhiteElo "2230"]
[BlackElo "2511"]

1. e4 {[%clk 00:04:04]} e6 {[%clk 00:03:05]} {[%emt 00:00:02]} 2. d3 {[%clk
00:04:06]} {[%emt 00:00:02]} d5 {[%clk 00:03:06]} {[%emt 00:00:02]} 3. Qe2
{[%clk 00:04:07]} {[%emt 00:00:02]} Nf6 {[%clk 00:02:57]} {[%emt 00:00:12]} 4.
Nf3 {[%clk 00:04:08]} {[%emt 00:00:02]} b6 {[%clk 00:02:50]} {[%emt 00:00:10]}
5. e5 {[%clk 00:04:09]} {[%emt 00:00:02]} Nfd7 {[%clk 00:02:51]} {[%emt
00:00:03]} 6. g3 {[%clk 00:04:10]} {[%emt 00:00:02]} c5 {[%clk 00:02:42]}
{[%emt 00:00:12]} 7. c4 {[%clk 00:04:08]} {[%emt 00:00:05]} Nc6 {[%clk
00:01:40]} {[%emt 00:01:05]} 8. Bg2 {[%clk 00:03:56]} {[%emt 00:00:15]} d4
{[%clk 00:01:32]} {[%emt 00:00:11]} 9. Nfd2 {[%clk 00:03:41]} {[%emt 00:00:17]}
Bb7 {[%clk 00:01:25]} {[%emt 00:00:10]} 10. f4 {[%clk 00:03:42]} {[%emt
00:00:02]} Be7 {[%clk 00:01:22]} {[%emt 00:00:07]} 11. O-O {[%clk 00:03:41]}
{[%emt 00:00:03]} O-O {[%clk 00:01:21]} {[%emt 00:00:05]} 12. Ne4 {[%clk
00:03:39]} {[%emt 00:00:04]} Qc7 {[%clk 00:01:23]} {[%emt 00:00:02]} 13. Nbd2
{[%clk 00:03:25]} {[%emt 00:00:16]} Rae8 {[%clk 00:01:15]} {[%emt 00:00:11]} 14.
Nf3 {[%clk 00:03:23]} {[%emt 00:00:05]} f6 {[%clk 00:01:08]} {[%emt 00:00:11]}
15. exf6 Nxf6 {[%clk 00:01:02]} 16. Neg5 {[%clk 00:03:12]} {[%emt 00:00:07]}
Bd6 {[%clk 00:00:45]} {[%emt 00:00:20]} 17. Nxe6 {[%clk 00:01:56]} {[%emt
00:01:19]} Nd8 {[%clk 00:00:48]} {[%emt 00:00:01]} 18. f5 {[%clk 00:01:48]}
{[%emt 00:00:11]} Nxe6 {[%clk 00:00:48]} {[%emt 00:00:03]} 19. fxe6 {[%clk
00:01:49]} {[%emt 00:00:02]} Ng4 {[%clk 00:00:40]} {[%emt 00:00:11]} 20. Bd2
{[%clk 00:01:42]} {[%emt 00:00:10]} Ne3 {[%clk 00:00:37]} {[%emt 00:00:07]} 21.
Bxe3 {[%clk 00:01:30]} {[%emt 00:00:15]} Rxe6 {[%clk 00:00:39]} 22. Ng5 {[%clk
00:01:27]} {[%emt 00:00:06]} Rxe3 {[%clk 00:00:39]} {[%emt 00:00:03]} 23. Rxf8+
{[%clk 00:01:19]} {[%emt 00:00:11]} Bxf8 {[%clk 00:00:41]} {[%emt 00:00:01]} 24.
Qh5 {[%clk 00:01:21]} {[%emt 00:00:01]} g6 {[%clk 00:00:30]} {[%emt 00:00:14]}
25. Qh3 {[%clk 00:01:15]} {[%emt 00:00:08]} Bxg2 {[%clk 00:00:28]} {[%emt
00:00:05]} 26. Qxg2 {[%clk 00:01:08]} {[%emt 00:00:10]} Qe5 {[%clk 00:00:29]}
{[%emt 00:00:02]} 27. Nf3 {[%clk 00:00:47]} {[%emt 00:00:24]} Qf5 {[%clk
00:00:31]} {[%emt 00:00:01]} 28. Nh4 {[%clk 00:00:45]} {[%emt 00:00:05]} Qe6
{[%clk 00:00:27]} {[%emt 00:00:08]} 29. Rd1 {[%clk 00:00:39]} {[%emt 00:00:09]}
Be7 {[%clk 00:00:27]} {[%emt 00:00:02]} 30. Nf3 {[%clk 00:00:37]} {[%emt
00:00:05]} Qg4 {[%clk 00:00:28]} {[%emt 00:00:04]} 31. Rf1 {[%clk 00:00:36]}
{[%emt 00:00:04]} Bf6 {[%clk 00:00:25]} {[%emt 00:00:05]} 32. Ne1 {[%clk
00:00:28]} {[%emt 00:00:10]} Qe6 {[%clk 00:00:24]} {[%emt 00:00:04]} 33. Nc2
{[%clk 00:00:21]} {[%emt 00:00:10]} Re2 {[%clk 00:00:19]} {[%emt 00:00:09]} 34.
Rf2 {[%clk 00:00:23]} {[%emt 00:00:01]} Rxf2 {[%clk 00:00:18]} {[%emt
00:00:04]} 35. Qxf2 {[%clk 00:00:24]} {[%emt 00:00:01]} Bg5 {[%clk 00:00:20]}
{[%emt 00:00:01]} 36. Kg2 {[%clk 00:00:20]} {[%emt 00:00:06]} Kg7 {[%clk
00:00:21]} {[%emt 00:00:02]} 37. Qf3 {[%clk 00:00:14]} {[%emt 00:00:10]} h5
{[%clk 00:00:23]} {[%emt 00:00:01]} 38. b4 {[%clk 00:00:11]} {[%emt 00:00:05]}
Bd2 {[%clk 00:00:22]} {[%emt 00:00:05]} 39. bxc5 {[%clk 00:00:11]} {[%emt
00:00:03]} bxc5 {[%clk 00:00:24]} 40. h3 {[%clk 00:00:04]} {[%emt 00:00:10]} a6
{[%clk 00:00:21]} {[%emt 00:00:07]} 41. a4 {[%emt 00:00:03]} Kh6 {[%clk
00:00:20]} {[%emt 00:00:03]} 42. g4 {[%clk 00:00:07]} {[%emt 00:00:02]} h4
{[%clk 00:00:19]} {[%emt 00:00:04]} 43. a5 {[%clk 00:00:05]} {[%emt 00:00:04]}
Bxa5 {[%clk 00:00:16]} {[%emt 00:00:06]} 44. Qf2 {[%clk 00:00:07]} {[%emt
00:00:02]} Qe7 {[%clk 00:00:14]} {[%emt 00:00:05]} 45. Qf3 {[%clk 00:00:05]}
{[%emt 00:00:05]} Bc7 {[%clk 00:00:14]} {[%emt 00:00:03]} 46. Qf2 {[%clk
00:00:05]} {[%emt 00:00:03]} Kg7 {[%clk 00:00:14]} {[%emt 00:00:03]} 47. Qd2
{[%clk 00:00:04]} {[%emt 00:00:04]} Qe5 {[%clk 00:00:14]} {[%emt 00:00:03]} 48.
Kg1 {[%emt 00:00:05]} Qg3+ {[%emt 00:00:03]} 49. Qg2 {[%emt 00:00:02]} Qxd3
{[%emt 00:00:01]} 0-1